fUST/lending_fUST_20250614
["ID","MTS","AMOUNT","RATE_DAILY","PERIOD"]
[365763146,1749888641927,-1319.6,0.00022739,4]
[365763147,1749888641938,-536.9,0.00022739,4]
[365763148,1749888641949,-460.0,0.00022739,4]
[365763149,1749888641962,-507.0,0.00022803,2]
[365763150,1749888641976,-1010.12083235,0.00022831,8]
[365763151,1749888641989,-500.0,0.00022845,2]
[365763152,1749888641999,-420.0,0.00022918,2]
[365763153,1749888642011,-1010.12083235,0.00022934,8]
[365763154,1749888642024,-507.0,0.00022991,2]
[365763155,1749888642037,-3000.0,0.00023,2]
[365763156,1749888642048,-3000.0,0.0002301,2]
[365763157,1749888642059,-947.43,0.00023013,4]
[365763158,1749888642071,-849.6,0.00023013,4]
[365763159,1749888642082,-460.0,0.00023013,4]
[365763160,1749888642094,-631.64,0.00023013,4]
[365763161,1749888642106,-460.0,0.00023013,4]
[365763162,1749888642117,-887.78,0.00023013,4]
[365763163,1749888642129,-3269.74,0.00023013,4]
[365763164,1749888642141,-460.0,0.00023013,4]
[365763165,1749888642152,-580.32,0.00023013,4]
[365763166,1749888642164,-1129.34,0.00023013,4]
[365763167,1749888642176,-810.27,0.00023013,4]
[365763168,1749888642187,-1101.13,0.00023013,4]
[365763169,1749888642199,-460.0,0.00023013,4]
[365763170,1749888642211,-791.31,0.00023013,4]
[365763171,1749888642223,-460.0,0.00023013,4]
[365763172,1749888642234,-1319.6,0.00023013,4]
[365763173,1749888642246,-536.9,0.00023013,4]
[365763174,1749888642257,-460.0,0.00023013,4]
[365763175,1749888642270,-167.0,0.00023014,7]
[365763176,1749888642281,-3000.0,0.0002302,2]
[365763177,1749888642293,-3000.0,0.0002303,2]
[365763178,1749888642304,-1010.12083235,0.00023038,8]
[365763179,1749888642316,-3000.0,0.0002304,2]
[365763180,1749888642327,-839.8466164,0.00023041,2]
[365763181,1749888642338,-3000.0,0.0002305,2]
[365763182,1749888642351,-3000.0,0.0002306,2]
[365763183,1749888642362,-164.0,0.00023068,60]
[365763184,1749888642374,-3000.0,0.0002307,2]
[365763185,1749888642385,-5966.593199,0.0002308,2]
[365763186,1749888642397,-151.0,0.000231,8]
[365763187,1749888642411,-99302.72,0.000231,7]
[365763188,1749888642423,-1010.12083235,0.00023141,8]
[365763189,1749888642436,-782.70096405,0.00023174,2]
[365763190,1749888642448,-507.0,0.00023197,2]
[365763191,1749888642460,-165.57654102,0.00023233,2]
[365763192,1749888642473,-1010.12083235,0.00023245,8]
[365763193,1749888642484,-7964.3504177,0.0002326,2]
[365763194,1749888642495,-947.43,0.00023287,4]
[365763195,1749888642507,-849.6,0.00023287,4]
[365763197,1749888642518,-460.0,0.00023287,4]
[365763198,1749888642530,-631.64,0.00023287,4]
[365763199,1749888642540,-460.0,0.00023287,4]
[365763200,1749888642552,-887.78,0.00023287,4]
[365763201,1749888642564,-3269.74,0.00023287,4]
[365763202,1749888642575,-460.0,0.00023287,4]
[365763203,1749888642587,-580.32,0.00023287,4]
[365763204,1749888642598,-1129.34,0.00023287,4]
[365763206,1749888642608,-810.27,0.00023287,4]
[365763207,1749888642617,-1101.13,0.00023287,4]
[365763208,1749888642633,-460.0,0.00023287,4]
[365763209,1749888642644,-791.31,0.00023287,4]
[365763210,1749888642657,-460.0,0.00023287,4]
[365763211,1749888642666,-1319.6,0.00023287,4]
[365763212,1749888642677,-536.9,0.00023287,4]
[365763215,1749888642868,-460.0,0.00023287,4]
[365763216,1749888642879,-176.9937618,0.00023315,2]
[365763217,1749888642889,-153.0,0.00023315,2]
[365763218,1749888642899,-158.8714084,0.00023315,2]
[365763219,1749888642908,-573.7859869,0.00023315,2]
[365763221,1749888642918,-521.30738138,0.00023332,5]
[365763222,1749888642929,-1010.12083235,0.00023348,9]
[365763223,1749888642938,-151.0,0.0002335,7]
[365763224,1749888642947,-259.184029,0.0002335,7]
[365763225,1749888642957,-259.184029,0.0002335,7]
[365763226,1749888642966,-151.0,0.0002335,7]
[365763227,1749888642976,-507.0,0.00023368,2]
[365763228,1749888642986,-151.0,0.000234,6]
[365763229,1749888642995,-79699.05,0.000234,2]
[365763230,1749888643005,-507.0,0.0002341,2]
[365763231,1749888643015,-1010.12083235,0.00023452,9]
[365763232,1749888643025,-215.0738,0.00023457,2]
[365763233,1749888643035,-4049.0,0.000235,2]
[365763234,1749888643045,-4049.0,0.000235,2]
[365763235,1749888643055,-4049.0,0.000235,2]
[365763236,1749888643064,-4049.0,0.000235,2]
[365763237,1749888643074,-4049.0,0.000235,2]
[365763238,1749888643084,-4049.0,0.000235,2]
[365763239,1749888643094,-4049.0,0.000235,2]
[365763240,1749888643103,-4049.0,0.000235,2]
[365763241,1749888643113,-181.33122007,0.00023534,2]
[365763243,1749888643122,-165.57654102,0.00023534,2]
[365763245,1749888643131,-165.576541,0.00023534,2]
[365763247,1749888643141,-200.0,0.0002354,2]
[365763249,1749888643151,-1010.12083235,0.00023555,9]
[365763251,1749888643160,-947.43,0.00023561,4]
[365763252,1749888643170,-849.6,0.00023561,4]
[365763253,1749888643180,-460.0,0.00023561,4]
[365763254,1749888643191,-631.64,0.00023561,4]
[365763255,1749888643201,-460.0,0.00023561,4]
[365763256,1749888643211,-887.78,0.00023561,4]
[365763257,1749888643223,-3269.74,0.00023561,4]
[365763258,1749888643233,-460.0,0.00023561,4]
[365763259,1749888643242,-580.32,0.00023561,4]
[365763260,1749888643252,-1129.34,0.00023561,4]
[365763261,1749888643262,-810.27,0.00023561,4]
[365763263,1749888643272,-1101.13,0.00023561,4]
[365763264,1749888643282,-460.0,0.00023561,4]
[365763265,1749888643292,-791.31,0.00023561,4]
[365763266,1749888643302,-460.0,0.00023561,4]
[365763267,1749888643311,-1319.6,0.00023561,4]
[365763268,1749888643321,-536.9,0.00023561,4]
[365763269,1749888643330,-460.0,0.00023561,4]
[365763270,1749888643340,-200.0,0.00023595,2]
[365763271,1749888643349,-600.0,0.00023631,2]
[365763272,1749888643358,-1010.12083235,0.00023659,9]
[365763273,1749888643368,-3000.0,0.000237,2]
[365763274,1749888643379,-151.0,0.000237,7]
[365763275,1749888643388,-151.0,0.000237,6]
[365763276,1749888643399,-3000.0,0.0002371,2]
[365763277,1749888643409,-3000.0,0.0002372,2]
[365763278,1749888643419,-3000.0,0.0002373,2]
[365763279,1749888643429,-3000.0,0.0002374,2]
[365763280,1749888643439,-3000.0,0.0002375,2]
[365763281,1749888643448,-3000.0,0.0002376,2]
[365763282,1749888643458,-1010.12083235,0.00023762,9]
[365763283,1749888643469,-3000.0,0.0002377,2]
[365763284,1749888643479,-151.0,0.0002378,7]
[365763285,1749888643489,-259.184029,0.0002378,7]
[365763286,1749888643498,-259.184029,0.0002378,7]
[365763287,1749888643509,-151.708734,0.0002378,7]
[365763288,1749888643520,-3000.0,0.0002378,2]
[365763289,1749888643530,-3000.0,0.0002379,2]
[365763290,1749888643539,-151.0,0.000238,7]
[365763291,1749888643549,-259.184029,0.000238,7]
[365763292,1749888643559,-259.184029,0.000238,7]
[365763293,1749888643570,-2023.41,0.000238,2]
[365763294,1749888643580,-1011.81,0.000238,7]
[365763295,1749888643590,-3000.0,0.000238,2]
[365763296,1749888643600,-3000.0,0.0002381,2]
[365763297,1749888643610,-3070.1,0.0002381,2]
[365763298,1749888643621,-587.0,0.00023815,2]
[365763299,1749888643633,-3000.0,0.0002382,2]
[365763300,1749888643644,-3000.0,0.0002383,2]
[365763301,1749888643653,-160.0,0.00023834,2]
[365763302,1749888643663,-947.43,0.00023835,4]
[365763303,1749888643673,-849.6,0.00023835,4]
[365763304,1749888643683,-460.0,0.00023835,4]
[365763305,1749888643691,-631.64,0.00023835,4]
[365763306,1749888643702,-460.0,0.00023835,4]
[365763307,1749888643711,-887.78,0.00023835,4]
[365763308,1749888643722,-3269.74,0.00023835,4]
[365763309,1749888643731,-433.33,0.00023835,4]
[365763310,1749888643741,-580.32,0.00023835,4]
[365763311,1749888643750,-1129.34,0.00023835,4]
[365763312,1749888643759,-810.27,0.00023835,4]
[365763313,1749888643769,-1101.13,0.00023835,4]
[365763314,1749888643779,-460.0,0.00023835,4]
[365763315,1749888643790,-791.31,0.00023835,4]
[365763316,1749888643799,-460.0,0.00023835,4]
[365763317,1749888643808,-1319.6,0.00023835,4]
[365763318,1749888643818,-536.9,0.00023835,4]
[365763319,1749888643827,-460.0,0.00023835,4]
[365763320,1749888643836,-3000.0,0.0002384,2]
[365763321,1749888643845,-3000.0,0.0002385,2]
[365763322,1749888643855,-3000.0,0.0002386,2]
[365763323,1749888643864,-1010.12083235,0.00023866,10]
[365763324,1749888643873,-3000.0,0.0002387,2]
[365763325,1749888643883,-1063.24869493,0.00023878,2]
[365763326,1749888643892,-3000.0,0.0002388,2]
[365763327,1749888643901,-3000.0,0.0002389,2]
[365763328,1749888643911,-3000.0,0.000239,2]
[365763329,1749888643919,-167.82525183,0.000239,2]
[365763330,1749888643928,-1741.68707904,0.000239,2]
[365763331,1749888643938,-782.70096405,0.000239,2]
[365763332,1749888643948,-3390.97,0.000239,7]
[365763333,1749888643957,-3000.0,0.0002391,2]
[365763334,1749888643966,-3000.0,0.0002392,2]
[365763335,1749888643975,-3000.0,0.0002393,2]
[365763336,1749888643985,-3000.0,0.0002394,2]
[365763337,1749888643994,-3000.0,0.0002395,2]
[365763338,1749888644004,-3000.0,0.0002396,2]
[365763339,1749888644014,-1010.12083235,0.00023969,10]
[365763340,1749888644023,-3000.0,0.0002397,2]
[365763341,1749888644033,-500.0,0.00023973,2]
[365763342,1749888644042,-442.46825142,0.00023973,2]
[365763343,1749888644052,-500.0,0.00023973,2]
[365763344,1749888644061,-500.0,0.00023973,2]
[365763345,1749888644071,-500.0,0.00023973,2]
[365763346,1749888644080,-500.0,0.00023973,2]
[365763347,1749888644090,-500.0,0.00023973,2]
[365763348,1749888644100,-152.84253909,0.00023973,2]
[365763349,1749888644109,-500.0,0.00023973,2]
[365763350,1749888644120,-500.0,0.00023973,2]
[365763351,1749888644129,-500.0,0.00023973,2]
[365763352,1749888644139,-501.54253158,0.00023973,2]
[365763353,1749888644148,-500.0,0.00023973,2]
[365763354,1749888644157,-242.91572388,0.00023973,2]
[365763355,1749888644167,-500.76973816,0.00023973,2]
[365763356,1749888644176,-500.0,0.00023973,2]
[365763357,1749888644185,-500.0,0.00023973,2]
[365763358,1749888644196,-500.0,0.00023973,2]
[365763359,1749888644206,-500.0,0.00023973,2]
[365763360,1749888644215,-500.0,0.00023973,2]
[365763361,1749888644225,-600.0,0.00023973,2]
[365763362,1749888644235,-3000.0,0.0002398,2]
[365763363,1749888644245,-500.0,0.00023988,2]
[365763364,1749888644254,-3000.0,0.0002399,2]
[365763365,1749888644264,-160.21686064,0.00023999,2]
[365763366,1749888644273,-418000.98673465,0.00024,2]
[365763367,1749888644282,-250.0,0.00024,2]
[365763368,1749888644291,-250.0,0.00024,2]
[365763369,1749888644300,-250.0,0.00024,2]
[365763370,1749888644309,-250.0,0.00024,2]
[365763371,1749888644319,-250.0,0.00024,2]
[365763372,1749888644328,-250.0,0.00024,2]
[365763373,1749888644338,-250.0,0.00024,2]
[365763374,1749888644348,-250.0,0.00024,2]
[365763375,1749888644358,-250.0,0.00024,2]
[365763376,1749888644370,-250.0,0.00024,2]
[365763377,1749888644383,-250.0,0.00024,2]
[365763378,1749888644392,-250.0,0.00024,2]
[365763379,1749888644401,-250.0,0.00024,2]
[365763380,1749888644410,-250.0,0.00024,2]
[365763381,1749888644419,-250.0,0.00024,2]
[365763382,1749888644428,-250.0,0.00024,2]
[365763383,1749888644437,-250.0,0.00024,2]
[365763384,1749888644446,-300.6,0.00024,2]
[365763385,1749888644456,-397814.6456182,0.00024,30]
[365763386,1749888644739,-2365.73634277,0.00024,30]
[365763387,1749888644886,-155.0,0.00021095,2]
[365763388,1749888644963,-371.76640356,0.00024,30]
[365763389,1749888645123,-155.0,0.00021643,2]
[365763390,1749888645133,-17465.78040925,0.00024,30]
[365763406,1749888646586,-160.0,0.00021854,2]
[365763407,1749888646609,-137.75,0.0002383,2]
[365763408,1749888662842,-310.0,0.00021095,4]
[365763409,1749888668523,-190.0,0.00021095,4]
[365763410,1749888668546,-152.11648481,0.00022613,2]
[365763411,1749888672320,-224.44067473,0.0002399,10]
[365763412,1749888678793,-298.84282811,0.000239,10]
[365763413,1749888682755,-185.9680556,0.000239,10]
[365763414,1749888688773,-255.11607998,0.00022613,2]
[365763415,1749888691309,200.0,0.00024591,120]
[365763416,1749888700257,-317.94056478,0.00021095,4]
[365763417,1749888700739,-142.05943522,0.00021095,4]
[365763418,1749888700763,-175.88112956,0.00021095,4]
[365763419,1749888702990,-225.07,0.00021095,4]
[365763420,1749888713032,-201.85554784,0.00021095,4]
[365763421,1749888722889,-92.5533226,0.00021095,4]
[365763422,1749888722920,-84.39932687,0.00021369,4]
[365763423,1749888724640,-213.62075488,0.00021369,4]
[365763424,1749888727506,-181.60870613,0.00021094,2]
[365763425,1749888731986,-151.68429597,0.00021094,2]
[365763426,1749888734453,-166.7069979,0.00021094,2]
[365763427,1749888734476,-39.30801862,0.00021094,2]
[365763428,1749888737118,-157.90957491,0.00021095,4]
[365763429,1749888740534,-275.35372661,0.00021095,4]
[365763430,1749888742247,-241.47574459,0.00021094,2]
[365763431,1749888752226,-226.84863573,0.00021095,4]
[365763432,1749888759147,-34.58806275,0.00021095,4]
[365763433,1749888759176,-196.32193725,0.00021095,4]
[365763434,1749888811847,200.0,0.00023761,120]
[365763438,1749888991839,200.0,0.00023708,120]
[365763440,1749889170525,165.521663,0.0001995,2]
[365763441,1749889207904,246.53278786,0.0002,2]
[365763442,1749889207928,4753.46721214,0.0002,2]
[365763444,1749889223114,467.66378786,0.0002,2]
[365763445,1749889223139,4532.33621214,0.0002,2]
[365763446,1749889238671,688.79478786,0.0002,2]
[365763447,1749889238695,4273.36489697,0.0002,2]
[365763448,1749889291136,200.0,0.00024021,120]
[365763451,1749889378213,5007.190568,0.00024657,120]
[365763452,1749889400998,780.3273323,0.00019712,2]
[365763453,1749889472122,200.0,0.00023926,120]
[365763455,1749889545856,167.43877073,0.00013699,2]
[365763456,1749889545879,146.35413327,0.00013699,2]
[365763460,1749889628114,-199.370503,0.00020056,2]
[365763461,1749889628136,-313.792904,0.00020187,2]
[365763462,1749889628161,-158.99199077,0.00020627,2]
[365763463,1749889641119,-124.13019752,0.00020627,2]
[365763464,1749889641140,-300.0,0.00020697,2]
[365763465,1749889641164,-300.0,0.00020697,2]
[365763466,1749889641185,-1219.18275842,0.00020698,2]
[365763467,1749889642072,-2777.61679232,0.00020698,2]
[365763468,1749889654090,-2209.33190732,0.00020698,2]
[365763470,1749889671398,5074.77686673,0.00018,2]
[365763471,1749889671422,1581.35257158,0.00018,2]
[365763477,1749889711115,200.0,0.00023912,120]
[365763478,1749889715390,673.7582044,0.0001,7]
[365763479,1749889716998,2966.02022402,0.00018,2]
[365763480,1749889717022,5221.131,0.00018,2]
[365763481,1749889717046,309.43502738,0.00018,2]
[365763487,1749889748113,-2089.16652917,0.00020392,2]
[365763491,1749889767103,-951.13769293,0.00020392,2]
[365763492,1749889770103,-383.06113636,0.00020598,2]
[365763493,1749889770127,-300.0,0.00020697,2]
[365763494,1749889770150,-1383.53346364,0.00020698,2]
[365763495,1749889771695,200.0,0.00024585,120]
[365763502,1749889805781,1988.86230707,0.00019931,2]
[365763503,1749889805801,2007.775,0.00019931,2]
[365763504,1749889805821,2064.36476323,0.00019931,2]
[365763505,1749889805844,3938.9979297,0.00019931,2]
[365763506,1749889831095,200.0,0.00024319,120]
[365763545,1749889832127,-160.84,0.0002071,2]
[365763547,1749889832137,-24900.0,0.00020711,2]
[365763549,1749889832146,-745.104995,0.00020727,2]
[365763551,1749889832156,-7328.08984585,0.00020999,2]
[365763553,1749889832165,-500.0,0.00020999,2]
[365763555,1749889832174,-284.37256786,0.00020999,2]
[365763557,1749889832183,-500.0,0.00020999,2]
[365763559,1749889832192,-500.0,0.00020999,2]
[365763561,1749889832202,-500.0,0.00020999,2]
[365763563,1749889832211,-500.0,0.00020999,2]
[365763565,1749889832220,-500.0,0.00020999,2]
[365763567,1749889832229,-187.38127584,0.00020999,2]
[365763570,1749889832238,-500.0,0.00020999,2]
[365763573,1749889832247,-500.0,0.00020999,2]
[365763576,1749889832257,-500.0,0.00020999,2]
[365763579,1749889832266,-500.0,0.00020999,2]
[365763581,1749889832275,-500.0,0.00020999,2]
[365763583,1749889832284,-500.0,0.00020999,2]
[365763585,1749889832293,-350.0,0.00020999,2]
[365763587,1749889832307,-500.0,0.00020999,2]
[365763589,1749889832317,-15598.74278367,0.00021,2]
[365763591,1749889832326,-440.0,0.00021095,4]
[365763593,1749889832335,-444.12046204,0.00021095,4]
[365763595,1749889832344,-460.0,0.00021095,4]
[365763597,1749889832355,-430.0,0.00021095,4]
[365763599,1749889832365,-231.79909221,0.00021095,4]
[365763601,1749889832374,-460.0,0.00021095,4]
[365763603,1749889832384,-460.0,0.00021095,4]
[365763605,1749889832395,-460.0,0.00021095,4]
[365763607,1749889832404,-460.0,0.00021095,4]
[365763609,1749889832414,-440.0,0.00021095,4]
[365763611,1749889832424,-440.0,0.00021095,4]
[365763613,1749889832433,-225.82,0.00021095,4]
[365763615,1749889832443,-666.39,0.00021095,4]
[365763617,1749889832452,-460.0,0.00021095,4]
[365763619,1749889832462,-440.0,0.00021095,4]
[365763621,1749889832471,-460.0,0.00021095,4]
[365763623,1749889832481,-460.0,0.00021095,4]
[365763625,1749889832491,-460.0,0.00021095,4]
[365763627,1749889832500,-460.0,0.00021095,2]
[365763629,1749889832510,-460.0,0.00021095,4]
[365763631,1749889832520,-913.56,0.00021095,4]
[365763633,1749889832530,-460.0,0.00021095,4]
[365763635,1749889832539,-764.58,0.00021095,4]
[365763637,1749889832550,-460.0,0.00021095,4]
[365763639,1749889832560,-460.0,0.00021095,4]
[365763641,1749889832569,-473.32,0.00021095,4]
[365763643,1749889832579,-925.25,0.00021095,4]
[365763645,1749889832588,-460.0,0.00021095,4]
[365763647,1749889832598,-460.0,0.00021095,4]
[365763649,1749889832607,-3503.78,0.00021095,4]
[365763651,1749889832617,-460.0,0.00021095,4]
[365763653,1749889832627,-1083.4,0.00021095,4]
[365763655,1749889832636,-460.0,0.00021095,4]
[365763657,1749889832645,-816.97,0.00021095,4]
[365763659,1749889832655,-460.0,0.00021095,4]
[365763661,1749889832664,-349.12388858,0.00021095,4]
[365763663,1749889832675,-460.0,0.00021095,4]
[365763665,1749889832684,-460.0,0.00021095,4]
[365763667,1749889832693,-757.77,0.00021095,4]
[365763669,1749889832703,-557.95,0.00021095,4]
[365763671,1749889832712,-1171.25,0.00021095,4]
[365763673,1749889832721,-485.75,0.00021095,4]
[365763675,1749889832731,-460.0,0.00021095,4]
[365763677,1749889832740,-399.98530188,0.00021095,4]
[365763679,1749889832749,-1091.45,0.00021095,4]
[365763680,1749889832759,-33.12839716,0.00021095,4]
[365763682,1749889832772,-426.87160284,0.00021095,4]
[365763684,1749889832782,-460.0,0.00021095,4]
[365763685,1749889832792,-1189.66,0.000211,2]
[365763686,1749889832804,-256.26,0.00021359,10]
[365763687,1749889832813,-213.55,0.00021359,10]
[365763688,1749889832822,-666.39,0.00021369,4]
[365763689,1749889832831,-460.0,0.00021369,4]
[365763690,1749889832841,-460.0,0.00021369,2]
[365763691,1749889832851,-460.0,0.00021369,4]
[365763692,1749889832860,-913.56,0.00021369,4]
[365763693,1749889832869,-460.0,0.00021369,4]
[365763694,1749889832879,-764.58,0.00021369,4]
[365763695,1749889832888,-460.0,0.00021369,4]
[365763696,1749889832897,-179.48452792,0.00021369,4]
[365763697,1749889832907,-473.32,0.00021369,4]
[365763698,1749889832916,-925.25,0.00021369,4]
[365763699,1749889832926,-460.0,0.00021369,4]
[365763700,1749889832935,-460.0,0.00021369,4]
[365763701,1749889832944,-144.65357692,0.00021369,4]
[365763702,1749889832961,-3359.12642308,0.00021369,4]
[365763703,1749889832970,-460.0,0.00021369,4]
[365763704,1749889832980,-1083.4,0.00021369,4]
[365763705,1749889832989,-173.35896789,0.00021369,4]
[365763711,1749889838241,-13486.22046927,0.00020698,2]
[365763712,1749889838250,-460.0,0.00021095,4]
[365763713,1749889838259,-286.64103211,0.00021369,4]
[365763714,1749889838269,-816.97,0.00021369,4]
[365763715,1749889838278,-460.0,0.00021369,4]
[365763716,1749889838287,-460.0,0.00021369,4]
[365763717,1749889838297,-757.77,0.00021369,4]
[365763718,1749889838307,-557.95,0.00021369,4]
[365763719,1749889838317,-1171.25,0.00021369,4]
[365763721,1749889838335,-485.75,0.00021369,4]
[365763722,1749889838345,-460.0,0.00021369,4]
[365763723,1749889838355,-1091.45,0.00021369,4]
[365763724,1749889838364,-460.0,0.00021369,4]
[365763725,1749889838383,-460.0,0.00021369,4]
[365763726,1749889838403,-1567.82,0.00021582,2]
[365763727,1749889838418,-666.39,0.00021643,4]
[365763728,1749889838428,-460.0,0.00021643,4]
[365763729,1749889838438,-460.0,0.00021643,2]
[365763730,1749889838447,-460.0,0.00021643,4]
[365763731,1749889838457,-913.56,0.00021643,4]
[365763732,1749889838466,-460.0,0.00021643,4]
[365763733,1749889838475,-764.58,0.00021643,4]
[365763734,1749889838484,-460.0,0.00021643,4]
[365763735,1749889838494,-473.32,0.00021643,4]
[365763736,1749889838504,-925.25,0.00021643,4]
[365763737,1749889838513,-177.86250209,0.00021643,4]
[365763738,1749889838522,-206.07649988,0.00021643,4]
[365763739,1749889838532,-3503.78,0.00021643,4]
[365763740,1749889838541,-460.0,0.00021643,4]
[365763741,1749889838551,-1083.4,0.00021643,4]
[365763742,1749889838561,-476.21292204,0.00021643,4]
[365763743,1749889838571,-816.97,0.00021643,4]
[365763744,1749889838580,-460.0,0.00021643,4]
[365763745,1749889838590,-460.0,0.00021643,4]
[365763746,1749889838599,-757.77,0.00021643,4]
[365763747,1749889838608,-557.95,0.00021643,4]
[365763748,1749889838618,-1171.25,0.00021643,4]
[365763749,1749889838627,-485.75,0.00021643,4]
[365763750,1749889838637,-460.0,0.00021643,4]
[365763751,1749889838646,-1091.45,0.00021643,4]
[365763752,1749889838656,-460.0,0.00021643,4]
[365763753,1749889838665,-460.0,0.00021643,4]
[365763754,1749889838675,-506.85366717,0.00021707,2]
[365763755,1749889838685,-500.0,0.00021736,2]
[365763756,1749889838694,-274.08495818,0.00021736,2]
[365763757,1749889838704,-504.57279831,0.00021736,2]
[365763758,1749889838713,-500.0,0.00021736,2]
[365763759,1749889838722,-500.0,0.00021755,2]
[365763760,1749889838731,-500.0,0.00021762,2]
[365763761,1749889838740,-411.48642666,0.00021762,2]
[365763762,1749889838751,-596.45854838,0.000218,2]
[365763763,1749889838760,-504.02469897,0.000218,2]
[365763764,1749889838769,-4530.63554723,0.0002181,2]
[365763765,1749889838779,-503.19065093,0.00021869,2]
[365763766,1749889838788,-505.3847036,0.00021869,2]
[365763767,1749889838798,-500.0,0.00021869,2]
[365763768,1749889838807,-500.0,0.00021894,2]
[365763769,1749889838817,-503.59910326,0.00021894,2]
[365763770,1749889838826,-1480.42207333,0.000219,6]
[365763771,1749889838836,-369.68,0.00021907,3]
[365763772,1749889838845,-666.39,0.00021917,4]
[365763773,1749889838855,-460.0,0.00021917,4]
[365763774,1749889838864,-460.0,0.00021917,2]
[365763775,1749889838874,-460.0,0.00021917,4]
[365763776,1749889838884,-913.56,0.00021917,4]
[365763777,1749889838893,-460.0,0.00021917,4]
[365763778,1749889838903,-764.58,0.00021917,4]
[365763779,1749889838912,-460.0,0.00021917,4]
[365763780,1749889838922,-473.32,0.00021917,4]
[365763781,1749889838931,-925.25,0.00021917,4]
[365763782,1749889838941,-3503.78,0.00021917,4]
[365763783,1749889838950,-459.23088691,0.00021917,4]
[365763784,1749889838960,-1083.4,0.00021917,4]
[365763785,1749889838970,-816.97,0.00021917,4]
[365763786,1749889838979,-460.0,0.00021917,4]
[365763787,1749889838988,-460.0,0.00021917,4]
[365763788,1749889838998,-757.77,0.00021917,4]
[365763789,1749889839007,-557.95,0.00021917,4]
[365763790,1749889839017,-1171.25,0.00021917,4]
[365763791,1749889839026,-485.75,0.00021917,4]
[365763792,1749889839036,-460.0,0.00021917,4]
[365763793,1749889839046,-1091.45,0.00021917,4]
[365763794,1749889839056,-460.0,0.00021917,4]
[365763795,1749889839072,-460.0,0.00021917,4]
[365763796,1749889839168,-505.27602575,0.00021925,2]
[365763797,1749889839193,-159.71985028,0.0002196,2]
[365763798,1749889839203,-160.0,0.00021987,2]
[365763799,1749889839212,-160.0,0.00021987,2]
[365763800,1749889839222,-12533.30537164,0.00021987,2]
[365763801,1749889839231,-167.0,0.00022,2]
[365763802,1749889839241,-1453.39687288,0.00022,2]
[365763803,1749889839250,-167.0,0.00022,2]
[365763804,1749889839259,-1480.42207304,0.00022003,6]
[365763805,1749889839268,-207.4,0.00022088,2]
[365763806,1749889839278,-1750.456,0.00022088,2]
[365763807,1749889839287,-500.0,0.00022088,2]
[365763808,1749889839297,-500.0,0.00022088,2]
[365763809,1749889839306,-500.0,0.00022088,2]
[365763810,1749889839317,-500.0,0.00022088,2]
[365763811,1749889839329,-500.0,0.00022088,2]
[365763812,1749889839339,-500.0,0.00022088,2]
[365763813,1749889839349,-500.0,0.00022088,2]
[365763814,1749889839358,-500.0,0.00022088,2]
[365763815,1749889839370,-500.0,0.00022088,2]
[365763816,1749889839381,-500.0,0.00022088,2]
[365763817,1749889839391,-500.0,0.00022088,2]